[Event "XLIV Barbera del Valles-A 2022"]
[Site "Barbera del Valles"]
[Date "2022.07.09"]
[Round "6.8"]
[White "Munoz, Miguel"]
[Black "Barros, Raul Junior"]
[Result "1/2-1/2"]
[ECO "B22"]
[WhiteElo "2408"]
[BlackElo "2174"]
[Annotator "RC"]
[PlyCount "82"]
[EventDate "2022.07.04"]
[EventType "swiss"]
[EventCountry "ESP"]
[SourceTitle "playchess.com"]
[Source "ChessBase"]
[SourceQuality "1"]
[TimeControl "5400+30"]

1. e4 {[%emt 0:11:47]} c5 {[%emt 0:00:13]} 2. c3 {[%emt 0:00:12]} d5 {[%emt 0:00:35]} 3. exd5 {[%emt 0:00:08]} Qxd5 {[%emt 0:00:05]} 4. d4 {[%emt 0:00:06]} Nf6 {[%emt 0:02:31]} 5. Nf3 {[%emt 0:02:42]} e6 {[%emt 0:03:09]} 6. Na3 {[%emt 0:03:14]} a6 {[%emt 0:03:26]} 7. Nc4 {[%emt 0:01:12]} Nbd7 {[%emt 0:02:21]} 8. Bf4 {[%emt 0:02:08]} cxd4 {[%emt 0:01:46]} 9. Qxd4 {[%emt 0:00:09]} Qxd4 {[%emt 0:00:42]} 10. Nxd4 {[%emt 0:00:07]} Bc5 {[%emt 0:06:54]} 11. Nb3 {[%emt 0:01:28]} Nd5 {[%emt 0:08:48]} 12. Bg3 {[%emt 0:00:57]} Be7 {[%emt 0:02:43]} 13. Nd6+ {[%emt 0:00:36]} Bxd6 {[%emt 0:03:57]} 14. Bxd6 {[%emt 0:05:21]} b6 {[%emt 0:02:11]} 15. a4 {[%emt 0:01:30]} Bb7 {[%emt 0:01:00]} 16. c4 {[%emt 0:00:10]} N5f6 {[%emt 0:03:08]} 17. a5 {[%emt 0:00:49]} Ne4 {[%emt 0:01:35]} 18. Bc7 {[%emt 0:02:33]} Nec5 {[%emt 0:00:53]} 19. Nd4 {[%emt 0:00:43]} bxa5 {[%emt 0:01:07]} 20. Rxa5 {[%emt 0:00:25]} O-O {[%emt 0:06:15]} 21. b4 {[%emt 0:03:38]} Rfc8 {[%emt 0:02:20]} 22. Bg3 {[%emt 0:01:05]} Ne4 {[%emt 0:00:13]} 23. f3 {[%emt 0:07:32]} Nxg3 {[%emt 0:03:16]} 24. hxg3 {[%emt 0:00:07]} Nb6 {[%emt 0:00:49]} 25. c5 {[%emt 0:00:07]} Nd5 {[%emt 0:00:35]} 26. Nc2 {[%emt 0:00:19]} Bc6 {[%emt 0:09:46]} 27. Bd3 {[%emt 0:03:50]} Rcb8 {[%emt 0:04:18]} 28. Bxh7+ {[%emt 0:00:34]} Kf8 {[%emt 0:00:08]} 29. Be4 {[%emt 0:01:39]} Nxb4 {[%emt 0:05:24]} 30. Nxb4 {[%emt 0:01:29]} Bxe4 {[%emt 0:01:17]} 31. Rh8+ {[%emt 0:05:16]} Ke7 {[%emt 0:00:06]} 32. Rxb8 {[%emt 0:00:06]} Rxb8 {[%emt 0:00:07]} 33. Nxa6 {[%emt 0:00:06]} Rb1+ {[%emt 0:00:06]} 34. Kd2 {[%emt 0:00:16]} Bc6 {[%emt 0:00:18]} 35. Kc3 {[%emt 0:00:24]} Rc1+ {[%emt 0:02:15]} 36. Kd3 {[%emt 0:00:13]} Rd1+ {[%emt 0:00:39]} 37. Kc3 {[%emt 0:02:16]} Rc1+ {[%emt 0:00:06]} 38. Kd2 {[%emt 0:01:17]} Rb1 {[%emt 0:03:16]} 39. Ra2 {[%emt 0:07:29]} Bd5 {[%emt 0:01:22]} 40. Rc2 {[%emt 0:00:12]} Bb7 {[%emt 0:00:59]} 41. Ra2 {[%emt 0:00:09]} Bd5 {[%emt 0:00:02]} 1/2-1/2

[Event "XLIV Barbera del Valles-A 2022"]
[Site "Barbera del Valles"]
[Date "2022.07.09"]
[Round "6.9"]
[White "Alvarez Albiol, Victor"]
[Black "Del Amo Carbo, Jordi"]
[Result "0-1"]
[ECO "C45"]
[WhiteElo "2367"]
[BlackElo "2148"]
[Annotator "RC"]
[PlyCount "114"]
[EventDate "2022.07.04"]
[EventType "swiss"]
[EventCountry "ESP"]
[SourceTitle "playchess.com"]
[Source "ChessBase"]
[SourceQuality "1"]
[TimeControl "5400+30"]

1. e4 {[%emt 0:00:02]} e5 {[%emt 0:00:06]} 2. Nf3 {[%emt 0:00:08]} Nc6 {[%emt 0:00:13]} 3. d4 {[%emt 0:00:07]} exd4 {[%emt 0:00:06]} 4. Nxd4 {[%emt 0:00:07]} Bc5 {[%emt 0:00:06]} 5. Nb3 {[%emt 0:00:17]} Bb6 {[%emt 0:00:07]} 6. Nc3 {[%emt 0:00:14]} d6 {[%emt 0:00:28]} 7. Qe2 {[%emt 0:01:09]} Nf6 {[%emt 0:02:02]} 8. a4 {[%emt 0:03:01]} a6 {[%emt 0:08:11]} 9. Be3 {[%emt 0:02:57]} Bxe3 {[%emt 0:01:26]} 10. Qxe3 {[%emt 0:00:06]} O-O {[%emt 0:01:26]} 11. O-O-O {[%emt 0:00:55]} Qe7 {[%emt 0:04:20]} 12. Kb1 {[%emt 0:07:21]} Re8 {[%emt 0:07:49]} 13. f3 {[%emt 0:03:02]} Be6 {[%emt 0:01:00]} 14. Nd4 {[%emt 0:00:49]} Nxd4 {[%emt 0:01:49]} 15. Qxd4 {[%emt 0:00:20]} Rad8 {[%emt 0:01:01]} 16. g4 {[%emt 0:10:21]} c6 {[%emt 0:14:08]} 17. Rg1 {[%emt 0:17:15]} Bc8 {[%emt 0:10:21]} 18. Qf2 {[%emt 0:07:56]} Qe5 {[%emt 0:04:27]} 19. Bd3 {[%emt 0:04:01]} Qa5 {[%emt 0:03:18]} 20. Bc4 {[%emt 0:09:29]} b5 {[%emt 0:06:01]} 21. Bb3 {[%emt 0:00:51]} Be6 {[%emt 0:06:44]} 22. g5 {[%emt 0:06:28]} Nh5 {[%emt 0:01:16]} 23. Bxe6 {[%emt 0:07:42]} Rxe6 {[%emt 0:01:55]} 24. Ne2 {[%emt 0:01:56]} Ree8 {[%emt 0:03:10]} 25. Nd4 {[%emt 0:02:30]} Qb6 {[%emt 0:00:44]} 26. a5 {[%emt 0:00:31]} Qc7 {[%emt 0:00:46]} 27. Nf5 {[%emt 0:01:38]} Nf4 {[%emt 0:03:09]} 28. Qd4 {[%emt 0:03:11]} Ne6 {[%emt 0:00:06]} 29. Qc3 {[%emt 0:04:47]} d5 {[%emt 0:01:35]} 30. exd5 {[%emt 0:00:31]} Rxd5 {[%emt 0:00:11]} 31. Rxd5 {[%emt 0:00:34]} cxd5 {[%emt 0:00:07]} 32. Qxc7 {[%emt 0:01:39]} Nxc7 {[%emt 0:00:02]} 33. Nd4 {[%emt 0:00:44]} Kf8 {[%emt 0:02:11]} 34. Kc1 {[%emt 0:00:48]} Ne6 {[%emt 0:00:59]} 35. Nb3 {[%emt 0:00:37]} Ke7 {[%emt 0:01:30]} 36. Kd2 {[%emt 0:00:17]} Kd6 {[%emt 0:00:49]} 37. Re1 {[%emt 0:00:39]} Rc8 {[%emt 0:00:22]} 38. Rg1 {[%emt 0:01:02]} Rc4 {[%emt 0:00:14]} 39. Rg2 {[%emt 0:01:01]} Rh4 {[%emt 0:00:23]} 40. Ke3 {[%emt 0:01:26]} g6 {[%emt 0:04:05]} 41. Nc1 {[%emt 0:00:34]} Ra4 {[%emt 0:01:31]} 42. Nb3 {[%emt 0:00:17]} Rb4 {[%emt 0:00:35]} 43. Kd2 {[%emt 0:01:34]} Ke5 {[%emt 0:01:47]} 44. c3 {[%emt 0:00:35]} Ra4 {[%emt 0:01:01]} 45. Rg4 {[%emt 0:00:32]} Rxg4 {[%emt 0:01:05]} 46. fxg4 {[%emt 0:00:01]} Kf4 {[%emt 0:01:04]} 47. Nc1 {[%emt 0:01:58]} Kxg5 {[%emt 0:00:45]} 48. Nd3 {[%emt 0:00:00]} Kxg4 {[%emt 0:00:22]} 49. Ke3 {[%emt 0:00:00]} f5 {[%emt 0:01:11]} 50. Nb4 {[%emt 0:00:02]} f4+ {[%emt 0:00:26]} 51. Kd3 {[%emt 0:01:11]} Nc7 {[%emt 0:07:30]} 52. Kd4 {[%emt 0:00:14]} f3 {[%emt 0:00:00]} 53. Nd3 {[%emt 0:00:48]} Kh3 {[%emt 0:00:00]} 54. Kc5 {[%emt 0:00:19]} Kxh2 {[%emt 0:01:30]} 55. Kb6 {[%emt 0:00:13]} g5 {[%emt 0:00:00]} 56. Kxc7 {[%emt 0:00:10]} g4 {[%emt 0:00:00]} 57. Kb6 {[%emt 0:00:49]} g3 {[%emt 0:00:00]} 0-1

[Event "XLIV Barbera del Valles-A 2022"]
[Site "Barbera del Valles"]
[Date "2022.07.09"]
[Round "6.10"]
[White "Vehi Bach, Victor Manuel"]
[Black "Perez Bolanos, David"]
[Result "1/2-1/2"]
[ECO "C48"]
[WhiteElo "2290"]
[BlackElo "2041"]
[Annotator "RC"]
[PlyCount "50"]
[EventDate "2022.07.04"]
[EventType "swiss"]
[EventCountry "ESP"]
[SourceTitle "playchess.com"]
[Source "ChessBase"]
[SourceQuality "1"]
[TimeControl "5400+30"]

1. e4 {[%emt 0:00:03]} e5 {[%emt 0:02:02]} 2. Nf3 {[%emt 0:00:09]} Nc6 {[%emt 0:00:08]} 3. Nc3 {[%emt 0:00:20]} Nf6 {[%emt 0:00:18]} 4. Bb5 {[%emt 0:01:13]} Nd4 {[%emt 0:00:12]} 5. O-O {[%emt 0:01:50]} c6 {[%emt 0:00:13]} 6. Bd3 {[%emt 0:01:39]} Nxf3+ {[%emt 0:02:02]} 7. Qxf3 {[%emt 0:01:03]} Bd6 {[%emt 0:01:22]} 8. Be2 {[%emt 0:06:07]} O-O {[%emt 0:08:17]} 9. d3 {[%emt 0:00:56]} h6 {[%emt 0:06:34]} 10. Qg3 {[%emt 0:02:12]} Kh7 {[%emt 0:05:02]} 11. Kh1 {[%emt 0:28:05]} Bc7 {[%emt 0:04:19]} 12. f4 {[%emt 0:00:30]} d6 {[%emt 0:01:11]} 13. Be3 {[%emt 0:02:37]} d5 {[%emt 0:15:04]} 14. fxe5 {[%emt 0:00:48]} d4 {[%emt 0:01:03]} 15. Bf4 {[%emt 0:00:11]} Nd7 {[%emt 0:04:59]} 16. e6 {[%emt 0:15:55]} Bxf4 {[%emt 0:02:35]} 17. Rxf4 {[%emt 0:00:09]} dxc3 {[%emt 0:05:37]} 18. exd7 {[%emt 0:00:09]} cxb2 {[%emt 0:00:41]} 19. Rb1 {[%emt 0:00:06]} Qxd7 {[%emt 0:01:52]} 20. Rxb2 {[%emt 0:00:15]} Qd4 {[%emt 0:00:38]} 21. Rb1 {[%emt 0:06:04]} b6 {[%emt 0:09:57]} 22. Qf2 {[%emt 0:04:53]} Qxf2 {[%emt 0:03:11]} 23. Rxf2 {[%emt 0:00:08]} Be6 {[%emt 0:00:33]} 24. a3 {[%emt 0:01:00]} Rfd8 {[%emt 0:04:26]} 25. c3 {[%emt 0:00:11]} c5 {[%emt 0:00:52]} 1/2-1/2

[Event "XLIV Barbera del Valles-A 2022"]
[Site "Barbera del Valles"]
[Date "2022.07.10"]
[Round "7.2"]
[White "Dahale, Atul"]
[Black "Valenzuela Gomez, Fernando"]
[Result "1/2-1/2"]
[ECO "D36"]
[WhiteElo "2162"]
[BlackElo "2373"]
[Annotator "RC"]
[PlyCount "124"]
[EventDate "2022.07.04"]
[EventType "swiss"]
[EventCountry "ESP"]
[SourceTitle "playchess.com"]
[Source "ChessBase"]
[SourceQuality "1"]
[TimeControl "5400+30"]

1. d4 {[%emt 0:00:04]} d5 {[%emt 0:13:58]} 2. c4 {[%emt 0:00:22]} e6 {[%emt 0:00:13]} 3. Nc3 {[%emt 0:00:40]} Nf6 {[%emt 0:00:08]} 4. cxd5 {[%emt 0:00:46]} exd5 {[%emt 0:00:12]} 5. Bg5 {[%emt 0:00:33]} c6 {[%emt 0:00:24]} 6. Qc2 {[%emt 0:00:36]} Be6 {[%emt 0:03:12]} 7. e3 {[%emt 0:00:29]} h6 {[%emt 0:01:47]} 8. Bh4 {[%emt 0:01:59]} Nbd7 {[%emt 0:01:38]} 9. Bd3 {[%emt 0:00:28]} g5 {[%emt 0:00:10]} 10. Bg3 {[%emt 0:00:19]} Nh5 {[%emt 0:00:07]} 11. Nge2 {[%emt 0:00:59]} Nxg3 {[%emt 0:00:03]} 12. Nxg3 {[%emt 0:01:25]} h5 {[%emt 0:00:07]} 13. f4 {[%emt 0:13:25]} gxf4 {[%emt 0:19:28]} 14. exf4 {[%emt 0:00:11]} Nf6 {[%emt 0:01:02]} 15. f5 {[%emt 0:13:43]} Bd7 {[%emt 0:00:11]} 16. O-O-O {[%emt 0:00:51]} Qc7 {[%emt 0:10:21]} 17. Rde1+ {[%emt 0:01:08]} Kd8 {[%emt 0:00:06]} 18. Kb1 {[%emt 0:02:47]} Bd6 {[%emt 0:01:16]} 19. Nf1 {[%emt 0:01:44]} Qb6 {[%emt 0:01:13]} 20. Ne2 {[%emt 0:08:38]} Kc7 {[%emt 0:04:30]} 21. Nd2 {[%emt 0:00:37]} Rhg8 {[%emt 0:01:15]} 22. Nc3 {[%emt 0:00:50]} a6 {[%emt 0:03:46]} 23. Nb3 {[%emt 0:20:51]} Rae8 {[%emt 0:02:31]} 24. a3 {[%emt 0:08:20]} Kb8 {[%emt 0:03:20]} 25. Na4 {[%emt 0:00:18]} Qc7 {[%emt 0:01:16]} 26. Nac5 {[%emt 0:00:22]} Bc8 {[%emt 0:00:51]} 27. g3 {[%emt 0:00:19]} Ka7 {[%emt 0:02:02]} 28. Nd2 {[%emt 0:02:07]} Ng4 {[%emt 0:02:31]} 29. Ndb3 {[%emt 0:01:06]} Re7 {[%emt 0:03:44]} 30. Rxe7 {[%emt 0:00:50]} Qxe7 {[%emt 0:01:29]} 31. Rc1 {[%emt 0:04:50]} Re8 {[%emt 0:06:23]} 32. Na5 {[%emt 0:00:52]} Qc7 {[%emt 0:03:27]} 33. Qd2 {[%emt 0:03:59]} Bxc5 {[%emt 0:03:58]} 34. Rxc5 {[%emt 0:00:30]} Bd7 {[%emt 0:00:47]} 35. Rc1 {[%emt 0:06:34]} Qb6 {[%emt 0:00:17]} 36. Rc5 {[%emt 0:00:28]} Ne3 {[%emt 0:02:47]} 37. f6 {[%emt 0:00:55]} Qc7 {[%emt 0:01:03]} 38. Rc1 {[%emt 0:00:28]} Ng4 {[%emt 0:01:01]} 39. Nb3 {[%emt 0:01:53]} Bc8 {[%emt 0:01:57]} 40. Rf1 {[%emt 0:01:07]} Qd6 {[%emt 0:01:00]} 41. Rf3 {[%emt 0:01:24]} Re6 {[%emt 0:01:07]} 42. Rf5 {[%emt 0:00:43]} Nxf6 {[%emt 0:02:28]} 43. Nc5 {[%emt 0:00:45]} Re7 {[%emt 0:00:35]} 44. Rf3 {[%emt 0:00:39]} Ne4 {[%emt 0:01:07]} 45. Qb4 {[%emt 0:00:33]} b6 {[%emt 0:01:14]} 46. Nb3 {[%emt 0:00:29]} Qxb4 {[%emt 0:00:32]} 47. axb4 {[%emt 0:00:02]} f5 {[%emt 0:00:44]} 48. Kc2 {[%emt 0:00:13]} Kb8 {[%emt 0:00:35]} 49. Nc1 {[%emt 0:00:06]} Rh7 {[%emt 0:00:19]} 50. Rf4 {[%emt 0:00:09]} Kc7 {[%emt 0:00:22]} 51. Be2 {[%emt 0:00:07]} Kd6 {[%emt 0:00:24]} 52. Nd3 {[%emt 0:00:32]} Nf6 {[%emt 0:00:36]} 53. Rh4 {[%emt 0:00:32]} Bd7 {[%emt 0:00:43]} 54. Nf4 {[%emt 0:00:32]} Ng4 {[%emt 0:00:37]} 55. h3 {[%emt 0:01:00]} Nf2 {[%emt 0:00:17]} 56. Bxh5 {[%emt 0:01:32]} Ne4 {[%emt 0:00:31]} 57. Bg6 {[%emt 0:00:08]} Rg7 {[%emt 0:00:14]} 58. Rh6 {[%emt 0:00:40]} Kc7 {[%emt 0:00:31]} 59. Nh5 {[%emt 0:00:30]} Re7 {[%emt 0:00:19]} 60. Rh7 {[%emt 0:00:29]} Rxh7 {[%emt 0:00:16]} 61. Bxh7 {[%emt 0:00:07]} Ng5 {[%emt 0:01:58]} 62. Nf6 {[%emt 0:01:55]} Bc8 {[%emt 0:00:30]} 1/2-1/2

[Event "XLIV Barbera del Valles-A 2022"]
[Site "Barbera del Valles"]
[Date "2022.07.10"]
[Round "7.3"]
[White "Pimpalkhare Vedant"]
[Black "Cuartas, Jaime Alexander"]
[Result "0-1"]
[ECO "A35"]
[WhiteElo "2057"]
[BlackElo "2513"]
[Annotator "TA"]
[PlyCount "128"]
[EventDate "2022.07.04"]
[EventType "swiss"]
[EventCountry "ESP"]
[SourceTitle "playchess.com"]
[Source "ChessBase"]
[SourceQuality "1"]
[TimeControl "5400+30"]

{[%evp 16,128,23,20,22,24,22,8,9,0,0,8,39,22,42,36,20,35,42,23,33,10,15,10,70,16,16,0,16,19,17,0,0,0,-6,-4,-8,-9,-6,-10,-8,-8,-10,-9,-7,-40,-34,-32,-38,-41,-31,-18,-18,-24,-11,-11,0,-18,-17,-48,-23,-43,-43,-37,-52,-74,-60,-49,-19,-22,0,0,0,0,0,0,0,0,0,-8,0,0,0,0,0,0,0,0,0,0,0,-8,0,0,0,0,0,0,0,-11933,-6599,-29973,-29974,-29978,-29979,-29985,-29986,-29986,-29987,-29987,-29988,-29992,-29989,-29988,-29989]} 1. Nf3 {[%emt 0:00:07]} c5 {[%emt 0:00:06]} 2. e3 {[%emt 0:00:27]} Nc6 {[%emt 0:00:19]} 3. c4 {[%emt 0:00:49]} Nf6 {[%emt 0:00:08]} 4. Nc3 {[%emt 0:02:18]} g6 {[%emt 0:00:06]} 5. Be2 {[%emt 0:04:38]} Bg7 {[%emt 0:00:07]} 6. O-O {[%emt 0:00:45]} O-O {[%emt 0:00:09]} 7. d4 {[%emt 0:01:25]} cxd4 {[%emt 0:00:04]} 8. Nxd4 {[%emt 0:01:13]} d6 {[%emt 0:05:20] 8...d5 injects fresh life into this line.} 9. b3 {[%emt 0:03:33]} d5 {[%emt 0:05:59] A35: Symmetrical English: 2 Nc3 Nc6 3 Nf3.} 10. Nxc6 {[%emt 0:05:52]} bxc6 {[%emt 0:00:09]} 11. Bb2 {[%emt 0:00:51]} Ne4 {[%emt 0:03:16] The position is equal.} 12. Qc1 {[%emt 0:00:30]} Nxc3 {[%emt 0:01:38]} 13. Bxc3 {[%emt 0:00:06] [#]} e6 $146 {[%emt 0:03:24]} ({Predecessor:} 13... Bxc3 14. Qxc3 Be6 15. Rfd1 Qb6 16. Rac1 Rac8 17. h3 Rfd8 18. Qe5 Qa5 19. Rc2 Qa3 {1-0 (30) Gukesh,D (2614)-Demidov,M (2556) Warsaw 2021}) 14. Rd1 {[%emt 0:00:59]} Bb7 {[%emt 0:01:57]} 15. Qb2 {[%emt 0:05:06]} Bxc3 {[%emt 0:00:19]} 16. Qxc3 {[%emt 0:00:02]} Qe7 {[%emt 0:00:24]} 17. Bf3 {[%emt 0:02:36]} Rfd8 {[%emt 0:03:54]} 18. Rd2 {[%emt 0:03:44]} a5 {[%emt 0:10:42]} 19. h3 {[%emt 0:06:21]} f5 {[%emt 0:07:33]} (19... Qb4 $11 20. Rc1 Qxc3 21. Rxc3 Kg7) 20. Qe5 {[%emt 0:08:49]} (20. Rc1 $14) 20... Qg7 $11 {[%emt 0:02:36]} 21. Qxg7+ {[%emt 0:12:09]} ({Avoid the trap} 21. Qxe6+ $2 Kf8 22. cxd5 cxd5 $19) 21... Kxg7 {[%emt 0:00:06]} 22. Rc1 {[%emt 0:00:45]} Rac8 {[%emt 0:02:47]} 23. Rdc2 {[%emt 0:05:52]} d4 {[%emt 0:00:24]} 24. exd4 {[%emt 0:00:08]} Rxd4 {[%emt 0:00:08]} 25. Re1 {[%emt 0:00:21]} Kf6 {[%emt 0:00:43]} 26. Rce2 {[%emt 0:00:07] Inhibits e5.} Re8 {[%emt 0:00:17]} 27. Re5 {[%emt 0:00:11]} a4 $1 {[%emt 0:00:03]} 28. Ra5 {[%emt 0:05:11]} axb3 {[%emt 0:00:15]} 29. axb3 {[%emt 0:00:02]} e5 {[%emt 0:00:19][%cal Be6e5,Be5e4][%mdl 32]} 30. Ra7 {[%emt 0:06:04]} Re7 {[%emt 0:00:10]} 31. Kf1 {[%emt 0:04:43]} e4 {[%emt 0:03:48]} 32. Be2 {[%emt 0:00:58]} c5 {[%emt 0:00:44]} 33. b4 {[%emt 0:02:05]} cxb4 {[%emt 0:10:10] [#] Hoping for ...f4.} 34. Rb1 {[%emt 0:00:07]} f4 {[%emt 0:01:37] White must now prevent ...f3.} 35. Rxb4 {[%emt 0:01:04]} Rdd7 {[%emt 0:00:08] Strongly threatening ...f3.} 36. Ra3 {[%emt 0:02:31] Prevents f3.} Rc7 {[%emt 0:02:37]} 37. Rc3 {[%emt 0:01:47]} Rc5 {[%emt 0:00:22]} 38. Rb5 {[%emt 0:00:29]} Rec7 {[%emt 0:00:43] aiming for ...Rxb5.} 39. Rxc5 {[%emt 0:01:37]} Rxc5 $15 {[%emt 0:00:06][%mdl 4096] Endgame KRB-KRB} 40. Rb3 {[%emt 0:00:16]} Bc8 {[%emt 0:02:36]} 41. Ke1 {[%emt 0:01:11]} Ra5 {[%emt 0:01:16]} 42. Rb6+ {[%emt 0:04:51]} Ke5 {[%emt 0:02:16] Threatens to win with ...Ra1+.} 43. Rb5+ {[%emt 0:00:39]} Rxb5 {[%emt 0:00:05]} 44. cxb5 $11 {[%emt 0:00:02] KB-KB} Kd4 {[%emt 0:00:23]} 45. h4 {[%emt 0:02:32]} h6 {[%emt 0:05:01]} 46. Kd2 {[%emt 0:01:22]} Bb7 {[%emt 0:00:18]} 47. Ke1 {[%emt 0:00:58]} Bd5 {[%emt 0:00:33]} 48. Bf1 {[%emt 0:00:22]} Be6 {[%emt 0:04:17]} 49. Kd2 {[%emt 0:00:12]} Bd7 {[%emt 0:00:15]} 50. Be2 {[%emt 0:01:05]} Bc8 {[%emt 0:00:36]} 51. Bf1 {[%emt 0:00:10]} Bg4 {[%emt 0:02:08]} 52. Ke1 {[%emt 0:00:23]} Bc8 {[%emt 0:01:57]} 53. Be2 {[%emt 0:00:35]} Kc3 {[%emt 0:01:52]} 54. Bf1 {[%emt 0:00:48]} Bb7 {[%emt 0:01:37]} 55. Be2 {[%emt 0:00:14]} Kd4 {[%emt 0:00:16]} 56. Bf1 {[%emt 0:00:05]} e3 {[%emt 0:00:04]} 57. fxe3+ $2 {[%emt 0:01:10][%mdl 8192]} (57. b6 $11) 57... Kxe3 $19 {[%emt 0:00:08]} 58. b6 {[%emt 0:01:19] [#]} g5 $1 {[%emt 0:00:10] Black mates.} 59. hxg5 {[%emt 0:00:09]} hxg5 {[%emt 0:00:06][%cal Bh6g5,Bg5g4][%mdl 32]} 60. Bb5 {[%emt 0:01:16]} Bxg2 {[%emt 0:00:07]} 61. Ba6 {[%emt 0:00:03]} f3 {[%emt 0:00:08][%cal Bf4f3,Bf3f2][%mdl 32]} 62. Kd1 {[%emt 0:02:35]} f2 {[%emt 0:00:06]} 63. Bf1 {[%emt 0:00:13]} Bf3+ {[%emt 0:00:07]} 64. Kc2 {[%emt 0:00:03]} g4 {[%emt 0:00:05] Weighted Error Value: White=0.32/Black=0.07 (flawless)} 0-1

[Event "XLIV Barbera del Valles-A 2022"]
[Site "Barbera del Valles"]
[Date "2022.07.10"]
[Round "7.4"]
[White "Alsina Leal, Daniel"]
[Black "Sanchez, Sebastian Felipe"]
[Result "1-0"]
[ECO "B13"]
[WhiteElo "2525"]
[BlackElo "2440"]
[Annotator "TA"]
[PlyCount "77"]
[EventDate "2022.07.04"]
[EventType "swiss"]
[EventCountry "ESP"]
[SourceTitle "playchess.com"]
[Source "ChessBase"]
[SourceQuality "1"]
[TimeControl "5400+30"]

{[%evp 13,76,25,22,0,4,0,18,22,23,22,23,17,19,20,20,20,15,17,17,-6,16,8,34,47,25,7,64,66,164,168,414,412,406,416,410,395,449,443,444,220,220,220,220,210,214,224,220,52,968,966,2339,2170,1712,1321,29993,29994,29994,29995,29995,29996,29997,29998,29998,29999,29999]} 1. e4 {[%emt 0:00:02]} c6 {[%emt 0:01:12]} 2. d4 {[%emt 0:00:22]} d5 {[%emt 0:00:44]} 3. exd5 {[%emt 0:00:05]} cxd5 {[%emt 0:00:05]} 4. Bd3 {[%emt 0:00:05]} Nc6 {[%emt 0:00:45]} 5. c3 {[%emt 0:00:05]} Qc7 {[%emt 0:00:10]} 6. h3 {[%emt 0:00:54]} Nf6 {[%emt 0:00:58] 6...g6 is the fancy move.} 7. Nf3 {[%emt 0:00:19]} g6 {[%emt 0:00:20]} 8. O-O {[%emt 0:00:22] B13: Caro-Kann: Exchange Variation and Panov-Botvinnik Attack.} Bf5 {[%emt 0:00:59]} 9. Ne5 {[%emt 0:00:21]} Bxd3 {[%emt 0:10:15]} 10. Nxd3 {[%emt 0:00:17] The position is equal.} Bg7 {[%emt 0:00:07]} 11. Bf4 {[%emt 0:00:30]} Qc8 {[%emt 0:00:32]} 12. Re1 {[%emt 0:01:38]} O-O {[%emt 0:00:11]} 13. Nd2 {[%emt 0:03:55]} Re8 {[%emt 0:03:10]} 14. Qf3 {[%emt 0:05:04]} e6 {[%emt 0:02:44]} 15. Re2 {[%emt 0:22:07]} Nd7 {[%emt 0:14:29][%cal Og7d4] [#]} 16. Re3 $146 {[%emt 0:21:02]} ({Predecessor:} 16. Rae1 b5 17. Nb3 b4 18. Nxb4 Nxb4 19. cxb4 Qb7 20. a3 Qb5 21. Rc2 Nb6 22. Rc7 {1-0 (30) Rusu,V (1833)-Mickevicius,J (2277) Chess.com INT 2020}) 16... b6 {[%emt 0:04:58]} 17. Rae1 {[%emt 0:01:26]} Qb7 {[%emt 0:00:14]} 18. g4 {[%emt 0:08:19]} Rac8 {[%emt 0:05:22]} 19. Qg2 {[%emt 0:01:56]} Red8 {[%emt 0:18:02]} ({Black should try} 19... b5 $11) 20. h4 {[%emt 0:07:07][%cal Bh3h4,Bh4h5][%mdl 32] White is more active.} Na5 {[%emt 0:06:44]} ({Better is} 20... h6 $14) 21. h5 $1 $18 {[%emt 0:01:52]} Nc4 $2 {[%emt 0:00:23]} (21... Nf8 22. Rh3 Nc6) 22. Nxc4 {[%emt 0:00:34]} Rxc4 {[%emt 0:00:04]} 23. hxg6 {[%emt 0:01:04]} hxg6 {[%emt 0:00:21]} 24. Qh2 {[%emt 0:01:50]} Re8 {[%emt 0:13:05]} 25. Kg2 {[%emt 0:01:48] Threatens to win with Rh1.} Nf8 {[%emt 0:08:05]} 26. Ne5 {[%emt 0:03:55]} (26. g5 $142 Nd7 27. Rh1) 26... g5 {[%emt 0:00:18] [#]} 27. Rh3 $1 {[%emt 0:07:53][%cal Oe1h1,Be3h3,Bh3h8,Bh8h7,Bh7e7,Be7c7,Bc7c8,Bc8d8][%mdl 32] Black must now prevent Rh1!} f6 {[%emt 0:06:22] [#]} (27... gxf4 $2 28. Rh1 f3+ 29. Kxf3 $18) 28. Rh1 $1 {[%emt 0:04:11] Rh8+ would kill now.} fxe5 {[%emt 0:00:05] [#]} 29. Rh8+ $1 {[%emt 0:01:29][%mdl 512]} Kf7 {[%emt 0:01:37]} 30. Bxe5 $2 {[%emt 0:02:00]} (30. Qh5+ $18 Ng6 {[#]} 31. Rh7 $1 (31. Rxe8 Kxe8 32. Qxg6+ Qf7 $11) 31... exf4 32. Rxg7+ $1 {[%mdl 512]} Kxg7 33. Qh7+ Kf6 34. Qxb7) 30... Ng6 $2 {[%emt 0:02:12][%mdl 8192] A mistake that costs the game.} (30... Bxe5 $2 31. Qxe5 Qe7 32. R1h3 $18) (30... Bxh8 $14 31. Qxh8 (31. Qh5+ $2 Ke7 $19) 31... Re7) 31. Rh7 {[%emt 0:00:06]} Rg8 {[%emt 0:00:44]} 32. Bxg7 {[%emt 0:00:15] White wants to mate with Be5+.} Ke8 {[%emt 0:00:41]} 33. Bf6 {[%emt 0:02:19]} Qc8 {[%emt 0:00:29]} 34. Qd6 {[%emt 0:00:35] White mates.} Rc6 {[%emt 0:00:05] [#]} 35. Re7+ $1 {[%emt 0:00:24][%mdl 512]} Kf8 {[%emt 0:00:02] [#]} 36. Rhh7 $1 {[%emt 0:00:37][%csl Ge7][%cal Rh7f7]} Rh8 {[%emt 0:00:55]} (36... Rg7 37. Rh8+) 37. Rc7+ {[%emt 0:00:53]} Rxd6 {[%emt 0:00:05]} 38. Rxc8+ {[%emt 0:00:04]} Rd8 {[%emt 0:00:03]} 39. Rxd8# {[%emt 0:02:15] Weighted Error Value: White=0.20 (precise) /Black=0.41} 1-0